[Event "8th RTU Open 2018"]
[Site "Riga"]
[Date "2018.08.09"]
[Round "5"]
[White "Hansen, Mads"]
[Black "Sorensen, Hampus"]
[Result "1/2-1/2"]
[ECO "A20"]
[WhiteElo "2387"]
[BlackElo "2267"]
[Annotator "NA"]
[PlyCount "129"]
[EventDate "2018.08.06"]
[EventType "swiss"]
[EventCountry "LAT"]
[SourceTitle "playchess.com"]
[Source "ChessBase"]
[SourceQuality "1"]
[TimeControl "5400+30"]

1. c4 {[%emt 0:01:06]} e5 {[%emt 0:00:23]} 2. g3 {[%emt 0:00:14]} Nf6 {[%emt 0:00:57]} 3. Bg2 {[%emt 0:00:05]} d5 {[%emt 0:00:41]} 4. cxd5 {[%emt 0:00:04]} Nxd5 {[%emt 0:00:05]} 5. Nc3 {[%emt 0:00:03]} Nb6 {[%emt 0:00:58]} 6. Nf3 {[%emt 0:00:12]} Nc6 {[%emt 0:00:36]} 7. O-O {[%emt 0:00:06]} Be7 {[%emt 0:00:49]} 8. a3 {[%emt 0:00:23]} O-O {[%emt 0:05:07]} 9. b4 {[%emt 0:00:06]} Be6 {[%emt 0:01:35]} 10. d3 {[%emt 0:00:30]} Nd4 {[%emt 0:06:49]} 11. Nd2 {[%emt 0:07:36]} c6 {[%emt 0:03:13]} 12. Rb1 {[%emt 0:18:15]} Nd5 {[%emt 0:06:32]} 13. Bb2 {[%emt 0:01:24]} a5 {[%emt 0:07:11]} 14. bxa5 {[%emt 0:04:59]} Qxa5 {[%emt 0:02:43]} 15. Nxd5 {[%emt 0:05:44]} cxd5 {[%emt 0:04:25]} 16. Bxd4 {[%emt 0:01:58]} exd4 {[%emt 0:00:04]} 17. Rxb7 {[%emt 0:00:34]} Qxa3 {[%emt 0:07:36]} 18. Qb3 $11 {[%emt 0:22:00]} Qd6 19. Nf3 Bf6 {[%emt 0:02:39]} 20. Qb4 {[%emt 0:08:07]} Qxb4 {[%emt 0:09:45]} 21. Rxb4 {[%emt 0:00:03]} Rfb8 {[%emt 0:00:08]} 22. Rxb8+ {[%emt 0:00:09]} Rxb8 {[%emt 0:00:02]} 23. Ra1 {[%emt 0:00:56]} g5 {[%emt 0:02:27]} 24. h3 {[%emt 0:04:33]} Rb2 {[%emt 0:04:16]} 25. Bf1 {[%emt 0:07:36]} h5 {[%emt 0:03:38]} 26. Kh2 {[%emt 0:00:11]} g4 {[%emt 0:03:59]} 27. hxg4 {[%emt 0:00:05]} Bxg4 {[%emt 0:07:30]} 28. Kg2 {[%emt 0:02:15]} Kg7 {[%emt 0:00:39]} 29. Ra4 {[%emt 0:04:21]} Rb1 {[%emt 0:02:28]} 30. Nh2 {[%emt 0:02:04]} Bd7 {[%emt 0:01:20]} 31. Ra7 {[%emt 0:00:15]} Be6 {[%emt 0:00:40]} 32. f4 {[%emt 0:01:29]} Bf5 {[%emt 0:03:22]} 33. Ra2 {[%emt 0:00:23]} Be6 {[%emt 0:01:09]} 34. Kf2 {[%emt 0:00:20]} Be7 {[%emt 0:01:53]} 35. Bg2 {[%emt 0:00:42]} Bf6 {[%emt 0:02:52]} 36. Bf3 {[%emt 0:01:26]} Kg6 {[%emt 0:00:43]} 37. Ra5 {[%emt 0:00:43]} Bd8 {[%emt 0:00:30]} 38. Ra8 {[%emt 0:00:16]} Bf6 {[%emt 0:00:15]} 39. Ra5 {[%emt 0:00:33]} Bd8 {[%emt 0:00:07]} 40. Ra6 {[%emt 0:00:34]} Rb6 {[%emt 0:01:09]} 41. Ra8 {[%emt 0:01:11]} Bf6 {[%emt 0:00:08]} 42. Ra5 Rd6 {[%emt 0:02:58]} 43. Rb5 {[%emt 0:00:00]} Rd7 {[%emt 0:01:20]} 44. Rb6 {[%emt 0:00:00]} Rd8 {[%emt 0:00:57]} 45. Nf1 {[%emt 0:02:43]} Rc8 {[%emt 0:01:20]} 46. Rb5 {[%emt 0:00:19]} Rd8 {[%emt 0:00:17]} 47. Nd2 {[%emt 0:00:08]} Rd7 {[%emt 0:00:53]} 48. Nb3 {[%emt 0:00:10]} Rd8 {[%emt 0:00:45]} 49. Kg2 {[%emt 0:00:05]} Rd7 {[%emt 0:00:30]} 50. Rb4 {[%emt 0:00:31]} Be7 {[%emt 0:01:13]} 51. Rb6 {[%emt 0:00:28]} Bf6 {[%emt 0:00:18]} 52. Nc5 {[%emt 0:00:43]} Re7 {[%emt 0:01:04]} 53. Nb3 {[%emt 0:02:23]} Rd7 {[%emt 0:01:06]} 54. Rb4 {[%emt 0:00:23]} Be7 {[%emt 0:00:09]} 55. Rxd4 {[%emt 0:00:04]} Rb7 {[%emt 0:00:10]} 56. Na5 {[%emt 0:01:52]} Rb1 {[%emt 0:00:43]} 57. Ra4 {[%emt 0:00:53]} Bc5 {[%emt 0:00:23]} 58. Nc6 {[%emt 0:03:21]} Rg1+ {[%emt 0:01:42]} 59. Kh2 {[%emt 0:00:01]} Bf2 {[%emt 0:00:09]} 60. Bg2 {[%emt 0:00:48]} Re1 {[%emt 0:00:23]} 61. Ne5+ {[%emt 0:00:26]} Kg7 {[%emt 0:00:37]} 62. Bf3 {[%emt 0:00:10]} Rg1 {[%emt 0:00:34]} 63. Bg2 {[%emt 0:01:30]} Re1 {[%emt 0:00:02]} 64. Bf3 {[%emt 0:00:36]} Rg1 {[%emt 0:00:02]} 65. Bg2 {[%emt 0:00:48]} 1/2-1/2

[Event "8th RTU Open 2018"]
[Site "Riga"]
[Date "2018.08.09"]
[Round "5"]
[White "Rostgaard, Tobias Valentin"]
[Black "Bluebaum, Karl Ernst"]
[Result "0-1"]
[ECO "D00"]
[WhiteElo "2386"]
[BlackElo "2253"]
[Annotator "NA"]
[PlyCount "114"]
[EventDate "2018.08.06"]
[EventType "swiss"]
[EventCountry "LAT"]
[SourceTitle "playchess.com"]
[Source "ChessBase"]
[SourceQuality "1"]
[TimeControl "5400+30"]

1. d4 {[%emt 0:00:25]} d5 {[%emt 0:00:00]} 2. Bf4 {[%emt 0:00:08]} c5 {[%emt 0:00:14]} 3. e3 {[%emt 0:00:07]} Nc6 {[%emt 0:00:12]} 4. Nf3 {[%emt 0:00:08]} Nf6 {[%emt 0:00:20] LiveBook: 1218 Games} 5. Nbd2 {[%emt 0:00:07]} Qb6 {[%emt 0:01:11]} 6. dxc5 {[%emt 0:00:15]} Qxb2 {[%emt 0:00:24]} 7. Rb1 {[%emt 0:00:15]} Qc3 {[%emt 0:00:20]} 8. Bb5 {[%emt 0:00:46]} e6 {[%emt 0:02:16]} 9. O-O {[%emt 0:03:12]} Be7 {[%emt 0:02:52]} 10. e4 {[%emt 0:21:40]} O-O {[%emt 0:53:41]} 11. Bd6 {[%emt 0:07:17] [#]} Bxd6 $1 {[%emt 0:03:46]} 12. cxd6 {[%emt 0:07:24]} dxe4 $17 {[%emt 0:00:48]} 13. Ng5 {[%emt 0:32:33]} Qe5 {[%emt 0:05:37]} 14. Ndxe4 {[%emt 0:00:47]} Nxe4 {[%emt 0:00:56]} 15. Nxe4 {[%emt 0:00:10]} Qxe4 {[%emt 0:00:08]} 16. d7 {[%emt 0:00:10]} Bxd7 {[%emt 0:02:33]} 17. Qxd7 {[%emt 0:00:06]} Ne5 {[%emt 0:02:57]} 18. Qd1 {[%emt 0:04:54]} Rad8 {[%emt 0:01:03]} 19. Qe1 {[%emt 0:02:48]} Qxe1 {[%emt 0:00:34]} 20. Rfxe1 {[%emt 0:00:06]} Nd7 {[%emt 0:00:29]} 21. Re3 {[%emt 0:01:47]} Nc5 {[%emt 0:02:19]} 22. Rc3 {[%emt 0:01:17]} b6 {[%emt 0:00:12]} 23. Ra3 {[%emt 0:00:11]} a5 {[%emt 0:00:13]} 24. g3 {[%emt 0:03:15]} Rd6 {[%emt 0:00:09]} 25. Kg2 {[%emt 0:00:09]} g6 {[%emt 0:00:07]} 26. Be2 {[%emt 0:01:22]} Rfd8 {[%emt 0:00:15]} 27. Bf3 {[%emt 0:00:22]} Kg7 {[%emt 0:01:00]} 28. h4 {[%emt 0:00:14]} f5 {[%emt 0:00:27]} 29. c4 {[%emt 0:00:48]} Kf6 {[%emt 0:00:17]} 30. Re3 {[%emt 0:01:42]} h6 {[%emt 0:00:12]} 31. Ree1 {[%emt 0:02:17]} Na4 {[%emt 0:04:49]} 32. Rb3 {[%emt 0:02:38]} Rc8 {[%emt 0:00:53]} 33. Rc1 {[%emt 0:01:14]} Rd4 {[%emt 0:03:17]} 34. Be2 {[%emt 0:06:01]} Rd2 {[%emt 0:00:29]} 35. Ra3 {[%emt 0:00:10]} Nc5 {[%emt 0:00:23]} 36. Kf1 {[%emt 0:00:16]} Rcd8 {[%emt 0:00:10]} 37. Rb1 {[%emt 0:02:51]} R8d6 {[%emt 0:00:07]} 38. Bf3 {[%emt 0:00:22]} Rc2 {[%emt 0:00:45]} 39. Be2 {[%emt 0:00:32]} Rdd2 {[%emt 0:00:42]} 40. Re3 {[%emt 0:01:21]} Rd6 {[%emt 0:02:11]} 41. a3 {[%emt 0:01:09]} Ne4 {[%emt 0:01:32]} 42. Re1 {[%emt 0:02:42]} Nd2+ {[%emt 0:00:09]} 43. Kg2 {[%emt 0:00:28]} Nxc4 {[%emt 0:00:13]} 44. Bxc4 {[%emt 0:00:50]} Rxc4 {[%emt 0:00:02]} 45. Rb1 {[%emt 0:00:15]} Rc5 {[%emt 0:00:56]} 46. Reb3 {[%emt 0:00:12]} a4 {[%emt 0:00:23]} 47. Re3 {[%emt 0:01:32]} b5 {[%emt 0:00:17]} 48. Rb2 {[%emt 0:00:30]} Rdc6 {[%emt 0:00:28]} 49. Ree2 {[%emt 0:00:30]} Rd6 {[%emt 0:00:35]} 50. Re3 {[%emt 0:00:04]} e5 {[%emt 0:00:16]} 51. Rf3 {[%emt 0:00:52]} e4 {[%emt 0:00:17]} 52. Re3 {[%emt 0:00:05]} g5 {[%emt 0:01:28]} 53. hxg5+ {[%emt 0:00:05]} hxg5 {[%emt 0:00:02]} 54. g4 {[%emt 0:01:09]} Rd3 {[%emt 0:01:20]} 55. gxf5 {[%emt 0:01:24]} Rxe3 {[%emt 0:04:55]} 56. fxe3 {[%emt 0:00:05]} Rc3 {[%emt 0:00:11]} 57. Kf2 {[%emt 0:00:04]} Rb3 {[%emt 0:00:09]} 0-1

[Event "8th RTU Open 2018"]
[Site "Riga"]
[Date "2018.08.09"]
[Round "5"]
[White "Saveliev, Alexei"]
[Black "Semjonovs, Ilja"]
[Result "0-1"]
[ECO "B92"]
[WhiteElo "2382"]
[BlackElo "2242"]
[Annotator "NA"]
[PlyCount "76"]
[EventDate "2018.08.06"]
[EventType "swiss"]
[EventCountry "LAT"]
[SourceTitle "playchess.com"]
[Source "ChessBase"]
[SourceQuality "1"]
[TimeControl "5400+30"]

1. e4 {[%emt 0:00:00]} c5 {[%emt 0:04:45]} 2. Nf3 {[%emt 0:00:00]} d6 {[%emt 0:00:15]} 3. d4 {[%emt 0:00:00]} cxd4 {[%emt 0:00:11]} 4. Nxd4 {[%emt 0:00:00]} Nf6 {[%emt 0:00:37]} 5. Nc3 {[%emt 0:00:00]} a6 {[%emt 0:00:08]} 6. Be2 {[%emt 0:00:00]} e5 {[%emt 0:00:51]} 7. Nb3 {[%emt 0:00:00]} Be7 {[%emt 0:00:43]} 8. Be3 {[%emt 0:00:00]} Be6 {[%emt 0:00:17]} 9. Nd5 {[%emt 0:00:03]} Nxd5 {[%emt 0:02:34]} 10. exd5 {[%emt 0:00:09]} Bf5 {[%emt 0:00:19]} 11. Qd2 {[%emt 0:00:24]} Bg6 {[%emt 0:02:45] B92: Sicilian Najdorf: 6 Be2} 12. O-O {[%emt 0:00:07]} Nd7 {[%emt 0:02:07]} 13. a4 {[%emt 0:04:14]} O-O {[%emt 0:10:08]} 14. a5 {[%emt 0:05:57]} Rc8 {[%emt 0:04:58]} 15. Rac1 {[%emt 0:00:55]} Re8 {[%emt 0:29:50]} 16. c4 {[%emt 0:05:10] [#]} h6 $146 {[%emt 0:05:04]} ({Predecessor:} 16... f5 17. f4 Nf6 18. Qb4 Qd7 19. Rcd1 exf4 20. Bxf4 {½-½ (28) Hertel,P (2655)-Geist,H (2575) ICCF corr 2004}) 17. Rfd1 {[%emt 0:04:25]} Bg5 {[%emt 0:03:15]} 18. Bxg5 {[%emt 0:00:29]} hxg5 {[%emt 0:00:57]} (18... Qxg5 $11 19. Qxg5 hxg5) 19. Bg4 $11 {[%emt 0:09:39]} f5 {[%emt 0:03:02]} 20. Be2 {[%emt 0:00:01]} Qf6 {[%emt 0:10:51]} 21. Qb4 {[%emt 0:06:54]} Rc7 22. Qa3 {[%emt 0:12:13]} Rec8 {[%emt 0:04:42]} 23. Nd2 {[%emt 0:01:13]} Bf7 {[%emt 0:05:55]} 24. b4 {[%emt 0:00:45]} e4 {[%emt 0:03:27]} 25. Nb3 {[%emt 0:00:36]} Qe5 {[%emt 0:00:36]} 26. c5 {[%emt 0:01:39]} Nf6 {[%emt 0:01:38]} 27. b5 {[%emt 0:05:15]} axb5 {[%emt 0:02:27]} 28. cxd6 {[%emt 0:01:17]} Rxc1 {[%emt 0:00:11]} 29. Nxc1 {[%emt 0:00:45]} Rd8 {[%emt 0:01:27]} 30. Bxb5 {[%emt 0:00:51]} Rxd6 {[%emt 0:00:32]} 31. Bc4 {[%emt 0:01:07]} Bxd5 {[%emt 0:01:01]} 32. h3 {[%emt 0:03:27]} Rd7 {[%emt 0:00:41]} 33. Qc5 {[%emt 0:02:27]} Qe6 {[%emt 0:00:36]} 34. Bb5 {[%emt 0:00:35]} Bc6 {[%emt 0:00:31]} 35. Be2 {[%emt 0:00:58]} Rxd1+ 36. Bxd1 {[%emt 0:00:01]} Kh7 {[%emt 0:00:42]} 37. Nb3 {[%emt 0:02:28]} Qd5 {[%emt 0:00:26]} 38. Qc1 {[%emt 0:00:03]} e3 {[%emt 0:00:41]} 0-1

[Event "8th RTU Open 2018"]
[Site "Riga"]
[Date "2018.08.09"]
[Round "5"]
[White "Hedman, Erik"]
[Black "Maiorov, Nikita"]
[Result "0-1"]
[ECO "E17"]
[WhiteElo "2370"]
[BlackElo "2504"]
[Annotator "ChessBase"]
[PlyCount "114"]
[EventDate "2018.08.06"]
[EventType "swiss"]
[EventCountry "LAT"]
[SourceTitle "playchess.com"]
[Source "ChessBase"]
[SourceQuality "1"]
[TimeControl "5400+30"]

1. d4 {[%emt 0:00:00]} Nf6 {[%emt 0:03:06]} 2. c4 {[%emt 0:01:46]} e6 {[%emt 0:00:09]} 3. Nf3 {[%emt 0:00:07]} b6 {[%emt 0:00:09]} 4. g3 {[%emt 0:00:22]} Bb7 {[%emt 0:00:05]} 5. Bg2 {[%emt 0:00:09]} Be7 {[%emt 0:00:05]} 6. O-O {[%emt 0:00:27]} O-O {[%emt 0:00:05]} 7. d5 {[%emt 0:00:24]} exd5 {[%emt 0:00:16]} 8. Nh4 {[%emt 0:00:12]} c6 {[%emt 0:00:59]} 9. cxd5 {[%emt 0:01:19]} Nxd5 {[%emt 0:00:15]} 10. Nf5 {[%emt 0:00:21]} Nc7 {[%emt 0:02:16]} 11. Nc3 {[%emt 0:02:21]} d5 {[%emt 0:00:06]} 12. e4 {[%emt 0:01:24]} Nba6 {[%emt 0:00:30]} 13. exd5 {[%emt 0:07:14]} cxd5 {[%emt 0:00:05]} 14. Re1 {[%emt 0:07:34]} Re8 {[%emt 0:17:40]} 15. Qg4 {[%emt 0:12:11]} g6 {[%emt 0:09:36]} 16. Nh6+ {[%emt 0:12:33]} Kf8 {[%emt 0:08:48]} 17. Qf3 {[%emt 0:19:18]} Bf6 {[%emt 0:05:18]} 18. Bg5 {[%emt 0:11:10]} Kg7 {[%emt 0:00:47]} 19. Bxf6+ {[%emt 0:00:40]} Qxf6 {[%emt 0:00:11]} 20. Qxf6+ {[%emt 0:00:12]} Kxf6 {[%emt 0:00:05]} 21. Ng4+ {[%emt 0:00:08]} Kg7 {[%emt 0:00:21]} 22. Rxe8 {[%emt 0:03:43]} Rxe8 {[%emt 0:00:04]} 23. Rd1 {[%emt 0:00:29]} d4 {[%emt 0:11:21]} 24. Rxd4 {[%emt 0:04:28]} Re1+ {[%emt 0:00:28]} 25. Bf1 {[%emt 0:00:03]} Ne6 {[%emt 0:06:14]} 26. Rd1 {[%emt 0:02:16]} Ng5 {[%emt 0:04:45]} 27. Rxe1 {[%emt 0:01:24]} Nf3+ {[%emt 0:00:04]} 28. Kg2 {[%emt 0:00:10]} Nxe1+ {[%emt 0:00:03]} 29. Kg1 {[%emt 0:05:55]} Nf3+ {[%emt 0:03:09]} 30. Kg2 {[%emt 0:00:03]} Ne5+ {[%emt 0:03:06]} 31. Kh3 {[%emt 0:00:07]} Nf3 32. Kg2 {[%emt 0:00:12]} Nc7 {[%emt 0:06:01]} 33. Ne3 {[%emt 0:00:41]} f5 {[%emt 0:01:59]} 34. Be2 {[%emt 0:00:27]} Nd4+ {[%emt 0:00:22]} 35. Kf1 {[%emt 0:00:07]} g5 {[%emt 0:02:03]} 36. Bd3 {[%emt 0:00:36]} Kf6 {[%emt 0:00:52]} 37. h4 {[%emt 0:01:13]} gxh4 {[%emt 0:01:05]} 38. gxh4 {[%emt 0:00:02]} Ke5 {[%emt 0:02:34]} 39. Ne2 {[%emt 0:00:13]} Nxe2 {[%emt 0:01:38]} 40. Kxe2 {[%emt 0:00:24]} Ne6 {[%emt 0:00:06]} 41. Kd2 {[%emt 0:00:32]} Be4 {[%emt 0:02:20]} 42. Be2 {[%emt 0:05:27]} f4 {[%emt 0:00:58]} 43. Nc4+ {[%emt 0:00:33]} Kd5 {[%emt 0:00:13]} 44. Kc3 {[%emt 0:00:36]} Nd4 {[%emt 0:01:24]} 45. Bh5 {[%emt 0:00:32]} Bg6 {[%emt 0:01:09]} 46. Bxg6 {[%emt 0:00:15]} hxg6 {[%emt 0:00:08]} 47. Nd2 {[%emt 0:00:07]} Ne2+ {[%emt 0:02:58]} 48. Kc2 {[%emt 0:01:01]} Ke5 {[%emt 0:00:41]} 49. Nf3+ {[%emt 0:00:21]} Ke4 {[%emt 0:00:40]} 50. Ng5+ {[%emt 0:00:05]} Kd5 {[%emt 0:00:32]} 51. Kd2 {[%emt 0:00:11]} Nd4 {[%emt 0:00:21]} 52. Kd3 {[%emt 0:00:07]} Nc6 {[%emt 0:00:22]} 53. a3 {[%emt 0:01:40]} Ne5+ {[%emt 0:00:16]} 54. Kc3 {[%emt 0:00:04]} Ng4 {[%emt 0:01:16]} 55. Nh3 {[%emt 0:00:01]} Ke4 {[%emt 0:00:50]} 56. Kd2 {[%emt 0:00:14]} Kf3 {[%emt 0:00:43]} 57. Ke1 {[%emt 0:00:07]} Ne5 {[%emt 0:00:17]} 0-1

[Event "8th RTU Open 2018"]
[Site "Riga"]
[Date "2018.08.09"]
[Round "5"]
[White "Quillan, Gary"]
[Black "Leenhouts, Koen"]
[Result "1-0"]
[ECO "B51"]
[WhiteElo "2349"]
[BlackElo "2475"]
[Annotator "ChessBase"]
[PlyCount "91"]
[EventDate "2018.08.06"]
[EventType "swiss"]
[EventCountry "LAT"]
[SourceTitle "playchess.com"]
[Source "ChessBase"]
[SourceQuality "1"]
[TimeControl "5400+30"]

1. e4 {[%emt 0:03:41]} c5 {[%emt 0:00:00]} 2. Nf3 {[%emt 0:00:05]} d6 {[%emt 0:00:00]} 3. Bb5+ {[%emt 0:00:19]} Nd7 {[%emt 0:00:04]} 4. d4 {[%emt 0:06:53]} cxd4 {[%emt 0:00:47]} 5. Qxd4 {[%emt 0:00:08]} a6 {[%emt 0:00:10]} 6. Bxd7+ {[%emt 0:00:19]} Qxd7 {[%emt 0:00:09]} 7. Nc3 {[%emt 0:00:58]} e5 {[%emt 0:01:12]} 8. Qd3 {[%emt 0:01:01]} Qc6 {[%emt 0:00:08]} 9. Bg5 {[%emt 0:13:24]} Be6 {[%emt 0:01:36]} 10. Nd2 {[%emt 0:00:26]} f6 {[%emt 0:01:38]} 11. Be3 {[%emt 0:02:45]} Ne7 {[%emt 0:00:09]} 12. f4 {[%emt 0:08:50]} exf4 {[%emt 0:10:04]} 13. Bxf4 {[%emt 0:00:25]} Ng6 {[%emt 0:00:08]} 14. Bg3 {[%emt 0:01:17]} Ne5 {[%emt 0:00:27]} 15. Qe2 {[%emt 0:09:05]} Rc8 {[%emt 0:19:31]} 16. Nb3 {[%emt 0:06:38]} Bg4 {[%emt 0:13:19]} 17. Qf2 {[%emt 0:04:06]} Qc4 {[%emt 0:00:41]} 18. h3 {[%emt 0:06:02]} Bh5 {[%emt 0:00:57]} 19. Bf4 {[%emt 0:04:53]} b5 {[%emt 0:03:45]} 20. Nd4 {[%emt 0:07:47]} d5 {[%emt 0:04:54]} 21. Bxe5 {[%emt 0:03:15]} Bb4 {[%emt 0:02:42]} 22. Nf5 {[%emt 0:06:23]} O-O {[%emt 0:22:36]} 23. Bd4 {[%emt 0:00:16]} Rfe8 {[%emt 0:00:09]} 24. Ng3 {[%emt 0:00:24]} Ba5 {[%emt 0:00:47]} 25. Qd2 {[%emt 0:05:01]} b4 {[%emt 0:05:04]} 26. Nxd5 {[%emt 0:03:31]} Qxd5 {[%emt 0:01:35]} 27. O-O {[%emt 0:00:15]} Rxc2 {[%emt 0:03:24]} 28. Qe3 {[%emt 0:02:43]} Bc7 {[%emt 0:06:39]} 29. exd5 {[%emt 0:01:04]} Rxe3 {[%emt 0:00:02]} 30. Bxe3 {[%emt 0:00:34]} Bxg3 {[%emt 0:00:02]} 31. Bf4 {[%emt 0:00:39]} Bxf4 {[%emt 0:02:03]} 32. Rxf4 {[%emt 0:00:05]} Rxb2 {[%emt 0:00:04]} 33. Rf2 {[%emt 0:00:33]} Rxf2 {[%emt 0:00:38]} 34. Kxf2 {[%emt 0:00:01]} Bf7 {[%emt 0:00:17]} 35. d6 {[%emt 0:02:29]} Kf8 {[%emt 0:00:58]} 36. Rc1 {[%emt 0:00:37]} Be6 {[%emt 0:00:42]} 37. Rc7 {[%emt 0:00:15]} a5 {[%emt 0:00:16]} 38. Ra7 {[%emt 0:00:18]} a4 {[%emt 0:00:34]} 39. Rxa4 {[%emt 0:00:26]} Ke8 {[%emt 0:00:04]} 40. Ra7 {[%emt 0:00:23]} Kd8 {[%emt 0:00:08]} 41. Ke3 {[%emt 0:00:15]} Bd5 {[%emt 0:00:13]} 42. g3 {[%emt 0:00:18]} g5 {[%emt 0:00:20]} 43. Kd4 {[%emt 0:00:39]} Be6 {[%emt 0:00:07]} 44. h4 {[%emt 0:00:14]} h5 {[%emt 0:00:18]} 45. Kc5 {[%emt 0:00:20]} b3 {[%emt 0:00:15]} 46. axb3 {[%emt 0:00:16]} 1-0

[Event "8th RTU Open 2018"]
[Site "Riga"]
[Date "2018.08.09"]
[Round "5"]
[White "Sergienko, Sergey"]
[Black "Garriga Cazorla, Pere"]
[Result "1/2-1/2"]
[ECO "B31"]
[WhiteElo "2327"]
[BlackElo "2444"]
[Annotator "NA"]
[PlyCount "140"]
[EventDate "2018.08.06"]
[EventType "swiss"]
[EventCountry "LAT"]
[SourceTitle "playchess.com"]
[Source "ChessBase"]
[SourceQuality "1"]
[TimeControl "5400+30"]

1. Nf3 {[%emt 0:00:00]} c5 {[%emt 0:00:00]} 2. e4 {[%emt 0:00:00]} Nc6 {[%emt 0:00:00]} 3. Bb5 {[%emt 0:00:07]} g6 {[%emt 0:00:00]} 4. Bxc6 {[%emt 0:00:12]} bxc6 {[%emt 0:00:04]} 5. O-O {[%emt 0:00:10]} Bg7 {[%emt 0:00:02]} 6. Re1 {[%emt 0:00:09]} Nh6 {[%emt 0:00:11]} 7. c3 {[%emt 0:00:17]} O-O {[%emt 0:00:08]} 8. d4 {[%emt 0:00:05]} cxd4 {[%emt 0:00:04]} 9. cxd4 {[%emt 0:00:07]} d5 {[%emt 0:00:06]} 10. e5 {[%emt 0:00:27]} f6 {[%emt 0:00:06]} 11. h3 {[%emt 0:03:00]} fxe5 {[%emt 0:04:26]} 12. Nxe5 {[%emt 0:05:12]} Qb6 {[%emt 0:01:10]} 13. Bxh6 {[%emt 0:47:06]} Bxh6 {[%emt 0:02:18]} 14. b3 {[%emt 0:00:19]} Rf4 {[%emt 0:23:50] LiveBook: 3 Games} 15. Nf3 {[%emt 0:00:53]} Bf5 {[%emt 0:00:28]} 16. Nbd2 {[%emt 0:08:54]} Rf8 $14 {[%emt 0:02:17]} 17. Rxe7 {[%emt 0:06:56]} Bg7 {[%emt 0:22:54]} 18. Qe2 {[%emt 0:03:07]} Bxd4 {[%emt 0:04:28]} 19. Rc1 {[%emt 0:04:21]} Bf6 {[%emt 0:03:36]} 20. Re8 {[%emt 0:01:48]} Qc7 {[%emt 0:04:11]} 21. Re1 {[%emt 0:05:26]} Bd7 {[%emt 0:06:42]} 22. Rxf8+ {[%emt 0:01:41]} Kxf8 {[%emt 0:00:02]} 23. g3 {[%emt 0:01:31]} Rb4 {[%emt 0:00:48]} 24. Qe3 {[%emt 0:00:33]} Kg8 {[%emt 0:02:39]} 25. h4 {[%emt 0:01:30]} Rb8 {[%emt 0:01:37]} 26. Ng5 {[%emt 0:01:26]} Bf5 {[%emt 0:03:30]} 27. Ndf3 {[%emt 0:01:45]} c5 {[%emt 0:07:29]} 28. Ne6 {[%emt 0:01:18]} Qc6 {[%emt 0:00:42]} 29. Qxc5 {[%emt 0:01:52]} Qxc5 {[%emt 0:00:07]} 30. Nxc5 {[%emt 0:00:04]} Rc8 {[%emt 0:00:02]} 31. Ne6 {[%emt 0:01:23]} Rc3 {[%emt 0:01:06]} 32. Nfd4 {[%emt 0:01:07]} Be4 {[%emt 0:01:14]} 33. f3 {[%emt 0:00:23]} Bd3 {[%emt 0:01:41]} 34. Kf2 {[%emt 0:00:40]} Ba6 {[%emt 0:00:38]} 35. Rd1 {[%emt 0:00:33]} Bb7 {[%emt 0:02:23]} 36. Rd2 {[%emt 0:00:55]} Kf7 {[%emt 0:00:40]} 37. Nf4 {[%emt 0:00:35]} Rc8 {[%emt 0:02:24]} 38. Nfe2 {[%emt 0:00:13]} Be7 {[%emt 0:00:45]} 39. Rc2 {[%emt 0:00:38]} Bc5 {[%emt 0:00:02]} 40. Ke1 {[%emt 0:00:50]} Ke7 {[%emt 0:00:43]} 41. Kd1 {[%emt 0:00:26]} Kd7 {[%emt 0:00:28]} 42. b4 {[%emt 0:01:14]} Bd6 {[%emt 0:02:18]} 43. Rxc8 {[%emt 0:00:05]} Bxc8 {[%emt 0:00:01]} 44. a3 {[%emt 0:00:25]} a5 {[%emt 0:01:05]} 45. bxa5 {[%emt 0:00:32]} Bxa3 {[%emt 0:00:01]} 46. Kc2 {[%emt 0:00:14]} Bb4 {[%emt 0:00:11]} 47. Nb3 {[%emt 0:00:56]} Ba6 {[%emt 0:00:06]} 48. Nf4 {[%emt 0:00:08]} Bc4 {[%emt 0:02:25]} 49. Nd3 {[%emt 0:01:16]} Bxb3+ {[%emt 0:01:06]} 50. Kxb3 {[%emt 0:00:05]} Bxa5 {[%emt 0:00:02]} 51. g4 {[%emt 0:00:12]} Ke6 {[%emt 0:00:23]} 52. Kc2 {[%emt 0:00:40]} Bd8 {[%emt 0:00:49]} 53. h5 {[%emt 0:00:05]} gxh5 {[%emt 0:00:03]} 54. gxh5 {[%emt 0:00:50]} Bg5 {[%emt 0:00:24]} 55. Kd1 {[%emt 0:00:33]} Kf5 {[%emt 0:00:15]} 56. Ke2 {[%emt 0:00:05]} Bf6 {[%emt 0:00:43]} 57. Nb4 {[%emt 0:00:17]} Ke6 {[%emt 0:01:28]} 58. Nd3 {[%emt 0:01:48]} Bc3 {[%emt 0:00:43]} 59. Nf4+ {[%emt 0:01:18]} Ke5 {[%emt 0:00:06]} 60. Nd3+ {[%emt 0:00:09]} Kf5 {[%emt 0:00:16]} 61. Nc5 {[%emt 0:00:34]} Bd4 {[%emt 0:00:56]} 62. Nd3 {[%emt 0:00:11]} Bc3 {[%emt 0:00:18]} 63. Nc5 {[%emt 0:00:06]} Bb4 {[%emt 0:00:08]} 64. Nd3 {[%emt 0:00:17]} Ba5 {[%emt 0:00:17]} 65. Ke3 {[%emt 0:00:16]} Bb6+ {[%emt 0:00:04]} 66. Ke2 {[%emt 0:00:08]} Kg5 {[%emt 0:00:17]} 67. Nb4 {[%emt 0:01:39]} d4 {[%emt 0:00:05]} 68. Nc2 {[%emt 0:00:15]} Kxh5 {[%emt 0:00:20]} 69. Nxd4 {[%emt 0:00:06]} Bxd4 {[%emt 0:00:35]} 70. Kf1 {[%emt 0:00:04]} Kg5 1/2-1/2

[Event "8th RTU Open 2018"]
[Site "Riga"]
[Date "2018.08.09"]
[Round "5"]
[White "Meessen, Rudolf"]
[Black "Berzinsh, Roland"]
[Result "0-1"]
[ECO "B27"]
[WhiteElo "2281"]
[BlackElo "2408"]
[Annotator "NA"]
[PlyCount "58"]
[EventDate "2018.08.06"]
[EventType "swiss"]
[EventCountry "LAT"]
[SourceTitle "playchess.com"]
[Source "ChessBase"]
[SourceQuality "1"]
[TimeControl "5400+30"]

1. Nf3 {[%emt 0:05:56]} c5 {[%emt 0:00:43]} 2. e4 {[%emt 0:00:18]} b6 {[%emt 0:00:13]} 3. d4 {[%emt 0:01:46]} cxd4 {[%emt 0:00:37]} 4. Nxd4 {[%emt 0:00:25]} Bb7 {[%emt 0:00:07]} 5. Nc3 {[%emt 0:00:11]} a6 {[%emt 0:00:07]} 6. Bd3 {[%emt 0:11:20]} g6 {[%emt 0:01:16]} 7. Be3 {[%emt 0:02:21]} Bg7 {[%emt 0:00:09]} 8. Nd5 {[%emt 0:01:53]} e6 {[%emt 0:06:17]} 9. Nxe6 {[%emt 0:13:47]} (9. Nc3 $11) 9... dxe6 {[%emt 0:00:26]} 10. Bxb6 {[%emt 0:01:51]} Qd6 {[%emt 0:01:31]} 11. Nc7+ {[%emt 0:00:32] [#]} Ke7 $1 {[%emt 0:00:26]} 12. Nxa8 {[%emt 0:01:21]} Bxa8 {[%emt 0:00:49]} 13. Be3 {[%emt 0:02:09]} Bxb2 {[%emt 0:05:02]} 14. Rb1 {[%emt 0:10:59]} Bc3+ {[%emt 0:00:15]} 15. Ke2 {[%emt 0:01:50]} Nf6 {[%emt 0:05:52]} 16. f3 {[%emt 0:05:11]} Nbd7 {[%emt 0:04:17]} 17. Qg1 {[%emt 0:01:12]} Rc8 $17 {[%emt 0:01:39]} 18. Qf2 {[%emt 0:00:18]} Qa3 {[%emt 0:19:17]} 19. Rb3 {[%emt 0:01:55]} Qxa2 {[%emt 0:06:40]} 20. Rd1 {[%emt 0:00:07]} Qa5 {[%emt 0:10:27]} 21. Kf1 {[%emt 0:14:13]} Nc5 {[%emt 0:02:07]} 22. Rxc3 {[%emt 0:03:12]} Qxc3 {[%emt 0:00:07]} 23. Bd4 {[%emt 0:00:15]} Nxd3 {[%emt 0:02:26]} 24. cxd3 {[%emt 0:00:52]} Qc2 {[%emt 0:06:43]} 25. Qe1 {[%emt 0:00:12]} a5 {[%emt 0:01:11]} 26. Rd2 {[%emt 0:01:56]} Qc7 {[%emt 0:01:10]} 27. e5 {[%emt 0:01:23]} Nd5 {[%emt 0:01:02]} 28. Qh4+ {[%emt 0:00:49]} Kd7 {[%emt 0:00:06]} 29. Qxh7 {[%emt 0:00:30]} Qc1+ {[%emt 0:00:16] Ke1} 0-1